fUST/lending_fUST_20250208
["ID","MTS","AMOUNT","RATE_DAILY","PERIOD"]
[352117001,1738954244380,-500.0,0.00011095,2]
[352117003,1738954244389,-500.0,0.00011095,2]
[352117005,1738954244399,-500.0,0.00011095,2]
[352117007,1738954244408,-3143.76,0.00011095,2]
[352117009,1738954244418,-500.0,0.00011095,2]
[352117011,1738954244427,-558.85,0.00011095,2]
[352117013,1738954244438,-500.0,0.00011095,2]
[352117015,1738954244447,-500.0,0.00011095,2]
[352117017,1738954244457,-500.0,0.00011095,2]
[352117019,1738954244467,-4617.04,0.00011095,2]
[352117021,1738954244476,-500.0,0.00011095,2]
[352117023,1738954244485,-802.58,0.00011095,2]
[352117025,1738954244494,-500.0,0.00011095,2]
[352117027,1738954244503,-500.0,0.00011095,2]
[352117029,1738954244513,-500.0,0.00011095,2]
[352117031,1738954244523,-259.32308056,0.00011095,2]
[352117033,1738954244532,-500.0,0.00011095,2]
[352117035,1738954244542,-430.85297543,0.00011095,2]
[352117036,1738954244557,-619.68,0.00011095,2]
[352117038,1738954244566,-2020.28,0.00011095,2]
[352117040,1738954244575,-500.0,0.00011095,2]
[352117042,1738954244585,-500.0,0.00011095,2]
[352117044,1738954244595,-665.26,0.00011095,2]
[352117046,1738954244604,-500.0,0.00011095,2]
[352117048,1738954244614,-500.0,0.00011095,2]
[352117051,1738954244623,-500.0,0.00011095,2]
[352117052,1738954244633,-500.0,0.00011095,2]
[352117055,1738954244644,-4752.98,0.00011095,2]
[352117057,1738954244654,-500.0,0.00011095,2]
[352117059,1738954244664,-500.0,0.00011095,2]
[352117061,1738954244673,-500.0,0.00011095,2]
[352117063,1738954244683,-804.81,0.00011095,2]
[352117078,1738954244809,-500.67,0.00011095,2]
[352117080,1738954244835,-500.0,0.00011095,2]
[352117082,1738954244845,-500.0,0.00011095,2]
[352117084,1738954244855,-500.0,0.00011095,2]
[352117086,1738954244865,-500.0,0.00011095,2]
[352117088,1738954244874,-500.0,0.00011095,2]
[352117090,1738954244884,-827.53,0.00011095,2]
[352117092,1738954244894,-500.0,0.00011095,2]
[352117094,1738954244906,-500.0,0.00011095,2]
[352117096,1738954244915,-500.0,0.00011095,2]
[352117099,1738954244926,-500.0,0.00011095,2]
[352117101,1738954244935,-500.0,0.00011095,2]
[352117102,1738954244945,-500.0,0.00011095,2]
[352117105,1738954244955,-4010.63,0.00011095,2]
[352117107,1738954244965,-503.86,0.00011095,2]
[352117109,1738954244975,-500.0,0.00011095,2]
[352117111,1738954244985,-500.0,0.00011095,2]
[352117113,1738954244994,-500.0,0.00011095,2]
[352117115,1738954245004,-1841.58,0.00011095,2]
[352117117,1738954245013,-500.0,0.00011095,2]
[352117119,1738954245023,-500.0,0.00011095,2]
[352117121,1738954245033,-500.97557477,0.00011095,2]
[352117123,1738954245042,-805.35,0.00011095,2]
[352117125,1738954245053,-2108.36,0.00011095,2]
[352117127,1738954245063,-10696.12,0.00011095,2]
[352117129,1738954245072,-500.0,0.00011095,2]
[352117131,1738954245082,-2145.34,0.00011095,2]
[352117133,1738954245091,-500.0,0.00011095,2]
[352117135,1738954245101,-10264.73,0.00011095,2]
[352117137,1738954245110,-500.0,0.00011095,2]
[352117139,1738954245120,-500.0,0.00011095,2]
[352117141,1738954245130,-500.0,0.00011095,2]
[352117143,1738954245140,-500.0,0.00011095,2]
[352117145,1738954245149,-500.0,0.00011095,2]
[352117147,1738954245159,-500.0,0.00011095,2]
[352117149,1738954245168,-500.0,0.00011095,2]
[352117151,1738954245178,-500.0,0.00011095,2]
[352117153,1738954245188,-500.0,0.00011095,2]
[352117155,1738954245198,-500.0,0.00011095,2]
[352117157,1738954245208,-5747.6,0.00011095,2]
[352117159,1738954245218,-500.0,0.00011095,2]
[352117161,1738954245228,-500.0,0.00011095,2]
[352117163,1738954245239,-627.69,0.00011095,2]
[352117165,1738954245249,-500.0,0.00011095,2]
[352117168,1738954245259,-1035.83,0.00011095,2]
[352117169,1738954245270,-2523.84,0.00011095,2]
[352117171,1738954245281,-1214.08,0.00011095,2]
[352117173,1738954245291,-500.0,0.00011095,2]
[352117175,1738954245301,-500.0,0.00011095,2]
[352117178,1738954245312,-500.0,0.00011095,2]
[352117180,1738954245322,-500.0,0.00011095,2]
[352117182,1738954245332,-973.38,0.00011095,2]
[352117184,1738954245341,-500.0,0.00011095,2]
[352117185,1738954245350,-500.0,0.00011095,2]
[352117187,1738954245360,-2182.96,0.00011095,2]
[352117190,1738954245372,-500.0,0.00011095,2]
[352117192,1738954245381,-500.0,0.00011095,2]
[352117193,1738954245391,-500.0,0.00011095,2]
[352117195,1738954245400,-371.48801102,0.00011095,2]
[352117197,1738954245411,-500.0,0.00011095,2]
[352117199,1738954245420,-500.0,0.00011095,2]
[352117201,1738954245430,-500.0,0.00011095,2]
[352117203,1738954245439,-500.0,0.00011095,2]
[352117205,1738954245449,-500.0,0.00011095,2]
[352117207,1738954245458,-500.0,0.00011095,2]
[352117209,1738954245467,-500.0,0.00011095,2]
[352117211,1738954245477,-636.85,0.00011095,2]
[352117214,1738954245487,-500.0,0.00011095,2]
[352117216,1738954245496,-1161.82,0.00011095,2]
[352117218,1738954245506,-41096.15,0.00011095,2]
[352117220,1738954245515,-511.34359771,0.00011095,2]
[352117222,1738954245525,-1602.41,0.00011095,2]
[352117224,1738954245534,-500.0,0.00011095,2]
[352117226,1738954245543,-955.08,0.00011095,2]
[352117227,1738954245555,-500.0,0.00011095,2]
[352117230,1738954245565,-500.0,0.00011095,2]
[352117232,1738954245575,-500.0,0.00011095,2]
[352117233,1738954245584,-2088.53,0.00011095,2]
[352117236,1738954245594,-500.0,0.00011095,2]
[352117238,1738954245603,-2019.37,0.00011095,2]
[352117240,1738954245613,-500.0,0.00011095,2]
[352117242,1738954245623,-500.0,0.00011095,2]
[352117244,1738954245632,-500.00000001,0.00011095,2]
[352117246,1738954245641,-500.0,0.00011095,2]
[352117247,1738954245650,-500.0,0.00011095,2]
[352117250,1738954245660,-764.25,0.00011095,2]
[352117252,1738954245670,-605.82,0.00011095,2]
[352117253,1738954245679,-500.0,0.00011095,2]
[352117255,1738954245689,-500.0,0.00011095,2]
[352117258,1738954245699,-500.0,0.00011095,2]
[352117260,1738954245708,-20562.83,0.00011095,2]
[352117262,1738954245718,-500.0,0.00011095,2]
[352117264,1738954245727,-1136.1,0.00011095,2]
[352117265,1738954245736,-500.0,0.00011095,2]
[352117267,1738954245746,-500.0,0.00011095,2]
[352117269,1738954245759,-500.0,0.00011095,2]
[352117272,1738954245771,-5660.32,0.00011095,2]
[352117274,1738954245781,-690.44,0.00011095,2]
[352117275,1738954245791,-500.0,0.00011095,2]
[352117278,1738954245804,-500.0,0.00011095,2]
[352117280,1738954245815,-500.0,0.00011095,2]
[352117282,1738954245824,-500.0,0.00011095,2]
[352117284,1738954245835,-581.44,0.00011095,2]
[352117285,1738954245845,-502.59485842,0.00011095,2]
[352117287,1738954245855,-500.0,0.00011095,2]
[352117289,1738954245864,-500.0,0.00011095,2]
[352117291,1738954245875,-1826.59,0.00011095,2]
[352117294,1738954245885,-500.0,0.00011095,2]
[352117296,1738954245895,-585.02631731,0.00011095,2]
[352117298,1738954245905,-500.0,0.00011095,2]
[352117300,1738954245915,-6023.31,0.00011095,2]
[352117302,1738954245925,-500.0,0.00011095,2]
[352117304,1738954245936,-15559.49,0.00011095,2]
[352117306,1738954245945,-1654.23,0.00011095,2]
[352117308,1738954245955,-500.0,0.00011095,2]
[352117310,1738954245964,-500.0,0.00011095,2]
[352117312,1738954245974,-2880.76,0.00011095,2]
[352117314,1738954245983,-744.54,0.00011095,2]
[352117316,1738954245993,-500.0,0.00011095,2]
[352117318,1738954246003,-555.92,0.00011095,2]
[352117320,1738954246012,-500.0,0.00011095,2]
[352117322,1738954246021,-500.0,0.00011095,2]
[352117324,1738954246031,-500.0,0.00011095,2]
[352117326,1738954246040,-500.0,0.00011095,2]
[352117328,1738954246050,-500.0,0.00011095,2]
[352117330,1738954246064,-2813.51,0.00011095,2]
[352117332,1738954246074,-500.0,0.00011095,2]
[352117334,1738954246083,-910.53,0.00011095,2]
[352117336,1738954246092,-973.03,0.00011095,2]
[352117338,1738954246102,-500.0,0.00011095,2]
[352117340,1738954246112,-474.75528545,0.00011095,2]
[352117342,1738954246121,-500.0,0.00011095,2]
[352117344,1738954246130,-4043.9,0.00011095,2]
[352117346,1738954246139,-500.0,0.00011095,2]
[352117349,1738954246149,-500.0,0.00011095,2]
[352117352,1738954246159,-500.0,0.00011095,2]
[352117355,1738954246168,-500.0,0.00011095,2]
[352117358,1738954246178,-500.0,0.00011095,2]
[352117361,1738954246188,-500.0,0.00011095,2]
[352117365,1738954246198,-797.78,0.00011095,2]
[352117368,1738954246208,-1100.5,0.00011095,2]
[352117370,1738954246218,-500.0,0.00011095,2]
[352117373,1738954246231,-500.0,0.00011095,2]
[352117376,1738954246248,-6563.25,0.00011095,2]
[352117379,1738954246258,-151.0,0.000111,2]
[352117382,1738954246267,-151.0,0.000111,2]
[352117385,1738954246277,-151.0,0.000111,2]
[352117388,1738954246286,-354.7326672,0.000111,2]
[352117391,1738954246295,-153.0,0.000111,2]
[352117394,1738954246307,-306.0,0.000111,2]
[352117397,1738954246316,-431.544094,0.000111,2]
[352117400,1738954246326,-153.0,0.000111,2]
[352117403,1738954246335,-154.5548552,0.000111,2]
[352117406,1738954246345,-151.0,0.000111,2]
[352117410,1738954246355,-151.0,0.000111,2]
[352117413,1738954246364,-151.0,0.000111,2]
[352117416,1738954246374,-151.0,0.000111,2]
[352117419,1738954246384,-354.7326672,0.000111,2]
[352117422,1738954246394,-153.0,0.000111,2]
[352117425,1738954246403,-154.5548552,0.000111,2]
[352117428,1738954246412,-154.5548552,0.000111,2]
[352117431,1738954246422,-354.7326672,0.000111,2]
[352117434,1738954246431,-153.0,0.000111,2]
[352117437,1738954246440,-354.7326672,0.000111,2]
[352117440,1738954246450,-352.8566996,0.000111,2]
[352117443,1738954246459,-215.772047,0.000111,2]
[352117446,1738954246469,-154.5548552,0.000111,2]
[352117449,1738954246478,-151.0,0.000111,2]
[352117452,1738954246488,-151.0,0.000111,2]
[352117455,1738954246498,-151.0,0.000111,2]
[352117458,1738954246508,-151.0,0.000111,2]
[352117461,1738954246517,-154.5548552,0.000111,2]
[352117463,1738954246526,-215.772047,0.000111,2]
[352117466,1738954246536,-151.0,0.00011141,2]
[352117469,1738954246545,-151.0,0.000112,2]
[352117472,1738954246555,-151.0,0.000112,2]
[352117475,1738954246565,-151.0,0.000112,2]
[352117478,1738954246575,-151.0,0.000112,2]
[352117481,1738954246585,-151.0,0.000112,2]
[352117484,1738954246595,-151.0,0.000112,2]
[352117487,1738954246604,-151.0,0.000112,2]
[352117490,1738954246614,-151.0,0.000112,2]
[352117493,1738954246624,-306.0,0.000112,2]
[352117496,1738954246633,-154.5548552,0.000112,2]
[352117499,1738954246643,-215.772047,0.000112,2]
[352117502,1738954246653,-154.5548552,0.000112,2]
[352117505,1738954246662,-215.772047,0.000112,2]
[352117508,1738954246672,-316.139607,0.00011232,2]
[352117511,1738954246683,-316.139607,0.00011232,2]
[352117514,1738954246692,-151.0,0.00011232,2]
[352117517,1738954246702,-340.226188,0.00011232,2]
[352117520,1738954246712,-340.226188,0.00011232,2]
[352117523,1738954246726,-1473.400606,0.00011232,2]
[352117526,1738954246736,-1473.400606,0.00011232,2]
[352117529,1738954246746,-500.0,0.00011232,2]
[352117532,1738954246757,-500.0,0.00011232,2]
[352117536,1738954246771,-757.05,0.00011232,2]
[352117538,1738954246782,-500.0,0.00011232,2]
[352117541,1738954246792,-500.0,0.00011232,2]
[352117544,1738954246806,-500.0,0.00011232,2]
[352117547,1738954246818,-356.341764,0.00011232,2]
[352117551,1738954246830,-500.0,0.00011232,2]
[352117554,1738954246841,-491.570349,0.00011232,2]
[352117556,1738954246852,-500.0,0.00011232,2]
[352117559,1738954246862,-356.341764,0.00011232,2]
[352117562,1738954246873,-491.570349,0.00011232,2]
[352117565,1738954246884,-500.0,0.00011232,2]
[352117569,1738954246894,-500.0,0.00011232,2]
[352117571,1738954246906,-500.0,0.00011232,2]
[352117575,1738954246917,-500.0,0.00011232,2]
[352117578,1738954246928,-500.0,0.00011232,2]
[352117580,1738954246938,-500.0,0.00011232,2]
[352117583,1738954246949,-500.0,0.00011232,2]
[352117585,1738954246960,-500.0,0.00011232,2]
[352117587,1738954246971,-500.0,0.00011232,2]
[352117588,1738954246983,-369.08447923,0.00011232,2]
[352117591,1738954246994,-500.0,0.00011232,2]
[352117593,1738954247006,-500.0,0.00011232,2]
[352117594,1738954247016,-628.01,0.00011232,2]
[352117595,1738954247027,-500.0,0.00011232,2]
[352117596,1738954247038,-500.0,0.00011232,2]
[352117597,1738954247048,-500.0,0.00011232,2]
[352117598,1738954247062,-500.0,0.00011232,2]
[352117599,1738954247073,-500.0,0.00011232,2]
[352117600,1738954247083,-500.0,0.00011232,2]
[352117601,1738954247092,-500.0,0.00011232,2]
[352117602,1738954247102,-295.52794193,0.00011232,2]
[352117603,1738954247112,-500.0,0.00011232,2]
[352117604,1738954247122,-500.0,0.00011232,2]
[352117605,1738954247132,-500.0,0.00011232,2]
[352117606,1738954247142,-500.0,0.00011232,2]
[352117607,1738954247152,-500.0,0.00011232,2]
[352117609,1738954247162,-558.51,0.00011232,2]
[352117611,1738954247172,-1201.84,0.00011232,2]
[352117613,1738954247182,-741.38,0.00011232,2]
[352117615,1738954247192,-1273.35,0.00011232,2]
[352117617,1738954247202,-500.0,0.00011232,2]
[352117619,1738954247216,-308.73083876,0.00011232,2]
[352117621,1738954247228,-500.0,0.00011232,2]
[352117623,1738954247237,-567.55,0.00011232,2]
[352117625,1738954247247,-500.0,0.00011232,2]
[352117627,1738954247256,-500.0,0.00011232,2]
[352117629,1738954247266,-543.55,0.00011232,2]
[352117631,1738954247275,-1245.93,0.00011232,2]
[352117633,1738954247284,-845.37,0.00011232,2]
[352117635,1738954247293,-500.0,0.00011232,2]
[352117637,1738954247302,-500.0,0.00011232,2]
[352117638,1738954247314,-500.0,0.00011232,2]
[352117640,1738954247323,-500.0,0.00011232,2]
[352117642,1738954247332,-278.83680919,0.00011232,2]
[352117644,1738954247342,-500.0,0.00011232,2]
[352117646,1738954247352,-500.0,0.00011232,2]
[352117649,1738954247363,-519.97,0.00011232,2]
[352117651,1738954247372,-500.0,0.00011232,2]
[352117653,1738954247382,-418.6226,0.00011232,2]
[352117655,1738954247392,-418.6226,0.00011232,2]
[352117657,1738954247402,-500.0,0.00011232,2]
[352117659,1738954247411,-940.68,0.00011232,2]
[352117661,1738954247421,-500.0,0.00011232,2]
[352117663,1738954247434,-500.0,0.00011232,2]
[352117665,1738954247448,-500.0,0.00011232,2]
[352117667,1738954247457,-500.0,0.00011232,2]
[352117669,1738954247467,-778.47,0.00011232,2]
[352117671,1738954247476,-822.6,0.00011232,2]
[352117673,1738954247486,-500.0,0.00011232,2]
[352117675,1738954247495,-500.0,0.00011232,2]
[352117677,1738954247505,-500.0,0.00011232,2]
[352117679,1738954247515,-536.46751517,0.00011232,2]
[352117681,1738954247524,-2127.136711,0.00011232,2]
[352117683,1738954247534,-500.0,0.00011232,2]
[352117685,1738954247543,-2127.136711,0.00011232,2]
[352117687,1738954247553,-416.16,0.00011232,2]
[352117689,1738954247566,-1292.58,0.00011232,2]
[352117691,1738954247575,-500.0,0.00011232,2]
[352117692,1738954247584,-500.0,0.00011232,2]
[352117706,1738954247718,-500.0,0.00011232,2]
[352117708,1738954247728,-456.78622391,0.00011232,2]
[352117710,1738954247737,-500.0,0.00011232,2]
[352117712,1738954247749,-243.85592244,0.00011232,2]
[352117714,1738954247759,-500.0,0.00011232,2]
[352117716,1738954247770,-500.0,0.00011232,2]
[352117718,1738954247779,-500.0,0.00011232,2]
[352117720,1738954247789,-500.0,0.00011232,2]
[352117722,1738954247800,-500.0,0.00011232,2]
[352117724,1738954247813,-342.89392352,0.00011232,2]
[352117727,1738954247825,-785.37,0.00011232,2]
[352117728,1738954247837,-207.41255,0.00011232,2]
[352117731,1738954247849,-500.0,0.00011232,2]
[352117732,1738954247859,-207.41255,0.00011232,2]
[352117734,1738954247869,-500.0,0.00011232,2]
[352117736,1738954247879,-500.0,0.00011232,2]
[352117738,1738954247889,-500.0,0.00011232,2]
[352117740,1738954247899,-898.81,0.00011232,2]
[352117742,1738954247909,-500.0,0.00011232,2]
[352117744,1738954247920,-500.0,0.00011232,2]
[352117746,1738954247931,-500.0,0.00011232,2]
[352117748,1738954247940,-500.0,0.00011232,2]
[352117750,1738954247949,-500.0,0.00011232,2]
[352117752,1738954247959,-500.0,0.00011232,2]
[352117755,1738954247969,-500.0,0.00011232,2]
[352117757,1738954247981,-980.76,0.00011232,2]
[352117759,1738954247992,-879.96,0.00011232,2]
[352117761,1738954248002,-500.0,0.00011232,2]
[352117763,1738954248012,-201.88561725,0.00011232,2]
[352117765,1738954248022,-500.0,0.00011232,2]
[352117766,1738954248032,-500.0,0.00011232,2]
[352117768,1738954248042,-500.0,0.00011232,2]
[352117770,1738954248052,-500.0,0.00011232,2]
[352117772,1738954248064,-704.07,0.00011232,2]
[352117774,1738954248074,-500.0,0.00011232,2]
[352117776,1738954248085,-500.0,0.00011232,2]
[352117778,1738954248095,-228.63496614,0.00011232,2]
[352117780,1738954248106,-500.0,0.00011232,2]
[352117783,1738954248116,-1490.69,0.00011232,2]
[352117784,1738954248126,-500.0,0.00011232,2]
[352117786,1738954248137,-500.0,0.00011232,2]
[352117788,1738954248147,-500.0,0.00011232,2]
[352117790,1738954248157,-500.0,0.00011232,2]
[352117792,1738954248168,-500.0,0.00011232,2]
[352117794,1738954248179,-3143.76,0.00011232,2]
[352117796,1738954248188,-500.0,0.00011232,2]
[352117798,1738954248199,-558.85,0.00011232,2]
[352117800,1738954248208,-151.0,0.00011232,2]
[352117802,1738954248217,-500.0,0.00011232,2]
[352117804,1738954248227,-500.0,0.00011232,2]
[352117807,1738954248238,-557.93059378,0.00011232,2]
[352117808,1738954248249,-4617.04,0.00011232,2]
[352117810,1738954248259,-500.0,0.00011232,2]
[352117813,1738954248270,-802.58,0.00011232,2]
[352117815,1738954248282,-500.0,0.00011232,2]
[352117817,1738954248292,-500.0,0.00011232,2]
[352117819,1738954248301,-438.23,0.00011232,2]
[352117821,1738954248313,-500.0,0.00011232,2]
[352117823,1738954248323,-619.68,0.00011232,2]
[352117825,1738954248334,-2020.28,0.00011232,2]
[352117827,1738954248344,-274.368864,0.00011232,2]
[352117829,1738954248355,-500.0,0.00011232,2]
[352117831,1738954248365,-500.0,0.00011232,2]
[352117833,1738954248375,-665.26,0.00011232,2]
[352117835,1738954248386,-500.0,0.00011232,2]
[352117837,1738954248398,-500.0,0.00011232,2]
[352117839,1738954248409,-274.368864,0.00011232,2]
[352117841,1738954248419,-500.0,0.00011232,2]
[352117843,1738954248431,-4752.98,0.00011232,2]
[352117845,1738954248441,-500.0,0.00011232,2]
[352117847,1738954248451,-500.0,0.00011232,2]
[352117849,1738954248463,-500.0,0.00011232,2]
[352117851,1738954248474,-804.81,0.00011232,2]
[352117853,1738954248485,-500.67,0.00011232,2]
[352117855,1738954248495,-500.0,0.00011232,2]
[352117857,1738954248504,-500.0,0.00011232,2]
[352117859,1738954248516,-500.0,0.00011232,2]
[352117861,1738954248527,-500.0,0.00011232,2]
[352117863,1738954248538,-500.0,0.00011232,2]
[352117865,1738954248549,-827.53,0.00011232,2]
[352117867,1738954248561,-500.0,0.00011232,2]
[352117869,1738954248571,-500.0,0.00011232,2]
[352117871,1738954248585,-500.0,0.00011232,2]
[352117873,1738954248595,-500.0,0.00011232,2]
[352117875,1738954248605,-500.0,0.00011232,2]
[352117877,1738954248615,-500.0,0.00011232,2]
[352117880,1738954248625,-4010.63,0.00011232,2]
[352117882,1738954248635,-503.86,0.00011232,2]
[352117884,1738954248646,-500.0,0.00011232,2]
[352117886,1738954248656,-500.0,0.00011232,2]
[352117888,1738954248667,-500.0,0.00011232,2]
[352117890,1738954248677,-1841.58,0.00011232,2]
[352117892,1738954248687,-500.0,0.00011232,2]
[352117894,1738954248699,-500.0,0.00011232,2]
[352117896,1738954248710,-805.35,0.00011232,2]
[352117898,1738954248721,-2108.36,0.00011232,2]
[352117900,1738954248732,-10696.12,0.00011232,2]
[352117902,1738954248743,-500.0,0.00011232,2]
[352117904,1738954248755,-2145.34,0.00011232,2]
[352117906,1738954248769,-525.17,0.00011232,2]
[352117908,1738954248779,-10264.73,0.00011232,2]
[352117910,1738954248788,-500.0,0.00011232,2]
[352117912,1738954248799,-500.0,0.00011232,2]
[352117914,1738954248810,-500.0,0.00011232,2]
[352117916,1738954248819,-500.0,0.00011232,2]
[352117918,1738954248829,-428.83655808,0.00011232,2]
[352117920,1738954248841,-500.0,0.00011232,2]
[352117922,1738954248853,-500.0,0.00011232,2]
[352117924,1738954248863,-458.54865058,0.00011232,2]
[352117926,1738954248873,-500.0,0.00011232,2]
[352117928,1738954248883,-5747.6,0.00011232,2]
[352117930,1738954248894,-612.59,0.00011232,2]
[352117932,1738954248905,-627.69,0.00011232,2]
[352117934,1738954248915,-500.0,0.00011232,2]
[352117936,1738954248925,-1035.83,0.00011232,2]
[352117938,1738954248935,-2523.84,0.00011232,2]
[352117940,1738954248944,-1214.08,0.00011232,2]
[352117942,1738954248955,-500.0,0.00011232,2]
[352117944,1738954248966,-316.59809591,0.00011232,2]
[352117946,1738954248976,-500.0,0.00011232,2]
[352117948,1738954248987,-973.38,0.00011232,2]
[352117950,1738954248997,-500.0,0.00011232,2]
[352117952,1738954249006,-1199.678619,0.00011232,2]
[352117954,1738954249016,-500.0,0.00011232,2]
[352117956,1738954249027,-2182.96,0.00011232,2]
[352117958,1738954249037,-500.0,0.00011232,2]
[352117960,1738954249048,-500.0,0.00011232,2]
[352117962,1738954249060,-500.0,0.00011232,2]
[352117964,1738954249070,-500.0,0.00011232,2]
[352117966,1738954249082,-500.0,0.00011232,2]
[352117968,1738954249092,-1199.678619,0.00011232,2]
[352117970,1738954249103,-510.73417257,0.00011232,2]
[352117972,1738954249112,-500.0,0.00011232,2]
[352117974,1738954249123,-500.0,0.00011232,2]
[352117976,1738954249133,-500.0,0.00011232,2]
[352117978,1738954249144,-500.0,0.00011232,2]
[352117980,1738954249156,-636.85,0.00011232,2]
[352117982,1738954249166,-500.0,0.00011232,2]
[352117984,1738954249177,-1161.82,0.00011232,2]
[352117986,1738954249186,-41096.15,0.00011232,2]
[352117988,1738954249196,-1602.41,0.00011232,2]
[352117990,1738954249206,-500.0,0.00011232,2]
[352117992,1738954249217,-955.08,0.00011232,2]
[352117995,1738954249227,-500.0,0.00011232,2]
[352117997,1738954249240,-500.0,0.00011232,2]
[352117999,1738954249250,-500.0,0.00011232,2]
[352118001,1738954249260,-2088.53,0.00011232,2]
[352118003,1738954249270,-500.0,0.00011232,2]
[352118005,1738954249280,-2019.37,0.00011232,2]
[352118007,1738954249290,-500.0,0.00011232,2]
[352118009,1738954249300,-519.99234604,0.00011232,2]
[352118011,1738954249313,-500.0,0.00011232,2]
[352118013,1738954249323,-500.0,0.00011232,2]
[352118015,1738954249333,-764.25,0.00011232,2]
[352118017,1738954249344,-605.82,0.00011232,2]
[352118019,1738954249355,-500.0,0.00011232,2]
[352118021,1738954249365,-500.0,0.00011232,2]
[352118023,1738954249375,-500.0,0.00011232,2]
[352118026,1738954249392,-20562.83,0.00011232,2]
[352118028,1738954249403,-289.85139457,0.00011232,2]
[352118030,1738954249414,-1136.1,0.00011232,2]
[352118032,1738954249423,-287.81413658,0.00011232,2]
[352118034,1738954249434,-500.0,0.00011232,2]
[352118036,1738954249445,-500.0,0.00011232,2]
[352118038,1738954249455,-5660.32,0.00011232,2]
[352118040,1738954249464,-690.44,0.00011232,2]
[352118042,1738954249475,-500.0,0.00011232,2]
[352118044,1738954249484,-500.0,0.00011232,2]
[352118045,1738954249494,-500.0,0.00011232,2]
[352118047,1738954249504,-581.44,0.00011232,2]
[352118049,1738954249514,-500.0,0.00011232,2]
[352118052,1738954249524,-500.0,0.00011232,2]
[352118053,1738954249534,-1826.59,0.00011232,2]
[352118055,1738954249544,-500.0,0.00011232,2]
[352118057,1738954249554,-6023.31,0.00011232,2]
[352118060,1738954249569,-500.0,0.00011232,2]
[352118062,1738954249579,-15559.49,0.00011232,2]
[352118064,1738954249589,-1654.23,0.00011232,2]
[352118066,1738954249599,-500.0,0.00011232,2]
[352118068,1738954249611,-500.0,0.00011232,2]
[352118070,1738954249622,-2880.76,0.00011232,2]
[352118072,1738954249632,-744.54,0.00011232,2]
[352118074,1738954249642,-151.0,0.00011232,2]
[352118076,1738954249653,-500.0,0.00011232,2]
[352118078,1738954249663,-555.92,0.00011232,2]
[352118080,1738954249672,-500.0,0.00011232,2]
[352118082,1738954249683,-500.0,0.00011232,2]
[352118084,1738954249693,-505.08567262,0.00011232,2]
[352118086,1738954249703,-500.0,0.00011232,2]
[352118088,1738954249713,-2813.51,0.00011232,2]
[352118090,1738954249723,-500.0,0.00011232,2]
[352118092,1738954249733,-910.53,0.00011232,2]
[352118095,1738954249743,-973.03,0.00011232,2]